[Event "Titled Tuesday Blitz July 27 2021"]
[White "Begunov, Konstantin"]
[Black "Stoyanov, Tsvetan"]
[WhiteFideId "4118510"]
[BlackFideId "2917173"]
[WhiteElo "2262"]
[BlackElo "2198"]
[Result "0-1"]
[Round "11"]
[TimeControl "180+1"]
[Date "2021.07.27"]
[WhiteClock "0:00:04"]
[BlackClock "0:00:20"]

1. d4 {[%clk 0:02:57]}  g6 {[%clk 0:03:00]} 2. c4 {[%clk 0:02:56]}  Bg7 {[%clk 0:03:01]} 3. Nc3 {[%clk 0:02:55]}  c5 {[%clk 0:03:01]} 4. Nf3 {[%clk 0:02:55]}  cxd4 {[%clk 0:03:01]} 5. Nxd4 {[%clk 0:02:56]}  Nc6 {[%clk 0:03:01]} 6. Nc2 {[%clk 0:02:56]}  Nf6 {[%clk 0:03:02]} 7. g3 {[%clk 0:02:56]}  O-O {[%clk 0:03:02]} 8. Bg2 {[%clk 0:02:56]}  d6 {[%clk 0:03:02]} 9. O-O {[%clk 0:02:56]}  Be6 {[%clk 0:03:03]} 10. b3 {[%clk 0:02:56]}  a6 {[%clk 0:02:52]} 11. Bb2 {[%clk 0:02:56]}  Rc8 {[%clk 0:02:53]} 12. Ne3 {[%clk 0:02:56]}  Nd7 {[%clk 0:02:46]} 13. Qd2 {[%clk 0:02:54]}  Nc5 {[%clk 0:02:43]} 14. Ncd5 {[%clk 0:02:29]}  Bxb2 {[%clk 0:02:38]} 15. Qxb2 {[%clk 0:02:30]}  b5 {[%clk 0:02:38]} 16. Rac1 {[%clk 0:02:16]}  bxc4 {[%clk 0:02:33]} 17. Nxc4 {[%clk 0:02:15]}  Rb8 {[%clk 0:02:32]} 18. Rfd1 {[%clk 0:01:48]}  Bxd5 {[%clk 0:02:31]} 19. Bxd5 {[%clk 0:01:44]}  Nb4 {[%clk 0:02:31]} 20. Bf3 {[%clk 0:01:36]}  a5 {[%clk 0:02:29]} 21. Nxd6 {[%clk 0:01:18]}  exd6 {[%clk 0:02:26]} 22. Rxc5 {[%clk 0:01:18]}  dxc5 {[%clk 0:02:19]} 23. Rxd8 {[%clk 0:01:19]}  Rfxd8 {[%clk 0:02:19]} 24. a3 {[%clk 0:01:04]}  Na6 {[%clk 0:02:13]} 25. Qc3 {[%clk 0:00:59]}  Rd6 {[%clk 0:02:09]} 26. h4 {[%clk 0:00:43]}  h5 {[%clk 0:01:54]} 27. Kg2 {[%clk 0:00:42]}  Rbb6 {[%clk 0:01:36]} 28. Be4 {[%clk 0:00:33]}  Nc7 {[%clk 0:01:16]} 29. Qxc5 {[%clk 0:00:30]}  Ne6 {[%clk 0:01:16]} 30. Qxa5 {[%clk 0:00:27]}  Rxb3 {[%clk 0:01:16]} 31. a4 {[%clk 0:00:22]}  Rb2 {[%clk 0:01:12]} 32. Qe5 {[%clk 0:00:19]}  Rdd2 {[%clk 0:01:10]} 33. Bd3 {[%clk 0:00:15]}  Ra2 {[%clk 0:00:58]} 34. a5 {[%clk 0:00:15]}  Nf8 {[%clk 0:00:37]} 35. a6 {[%clk 0:00:15]}  Rxd3 {[%clk 0:00:34]} 36. exd3 {[%clk 0:00:14]}  Rxa6 {[%clk 0:00:35]} 37. d4 {[%clk 0:00:14]}  Re6 {[%clk 0:00:27]} 38. Qb5 {[%clk 0:00:14]}  Rd6 {[%clk 0:00:27]} 39. d5 {[%clk 0:00:13]}  Nd7 {[%clk 0:00:24]} 40. Qc4 {[%clk 0:00:10]}  Nf6 {[%clk 0:00:23]} 41. Qd4 {[%clk 0:00:04]}  Kg7 {[%clk 0:00:20]} 0-1


[Site "https://www.chess.com"]

[Event "Titled Tuesday Blitz July 27 2021"]
[White "Can, Emre"]
[Black "Babiy, Olga"]
[WhiteFideId "6302181"]
[BlackFideId "14117258"]
[WhiteElo "2503"]
[BlackElo "2230"]
[Result "0-1"]
[Round "11"]
[TimeControl "180+1"]
[Date "2021.07.27"]
[WhiteClock "0:00:42"]
[BlackClock "0:00:06"]

1. e4 {[%clk 0:02:59]}  e5 {[%clk 0:03:00]} 2. Nf3 {[%clk 0:02:57]}  d6 {[%clk 0:03:00]} 3. d4 {[%clk 0:02:56]}  exd4 {[%clk 0:03:01]} 4. Qxd4 {[%clk 0:02:56]}  Nf6 {[%clk 0:03:01]} 5. Nc3 {[%clk 0:02:55]}  Be7 {[%clk 0:03:01]} 6. Bf4 {[%clk 0:02:54]}  Nc6 {[%clk 0:02:55]} 7. Qd2 {[%clk 0:02:52]}  O-O {[%clk 0:02:45]} 8. O-O-O {[%clk 0:02:51]}  Be6 {[%clk 0:02:39]} 9. Kb1 {[%clk 0:02:48]}  a6 {[%clk 0:02:38]} 10. h3 {[%clk 0:02:46]}  b5 {[%clk 0:02:34]} 11. g4 {[%clk 0:02:45]}  b4 {[%clk 0:02:22]} 12. Nd5 {[%clk 0:02:44]}  Nxe4 {[%clk 0:02:22]} 13. Qe3 {[%clk 0:02:34]}  Nc5 {[%clk 0:02:07]} 14. Nxe7+ {[%clk 0:02:20]}  Qxe7 {[%clk 0:02:06]} 15. Bg2 {[%clk 0:02:18]}  Rab8 {[%clk 0:01:54]} 16. Ng5 {[%clk 0:02:11]}  Na5 {[%clk 0:01:50]} 17. Rhe1 {[%clk 0:02:01]}  Qf6 {[%clk 0:01:28]} 18. Qd4 {[%clk 0:01:50]}  Qxd4 {[%clk 0:01:19]} 19. Rxd4 {[%clk 0:01:51]}  Rfe8 {[%clk 0:01:06]} 20. Rdd1 {[%clk 0:01:40]}  h6 {[%clk 0:01:04]} 21. Nxe6 {[%clk 0:01:39]}  Nxe6 {[%clk 0:00:40]} 22. Be3 {[%clk 0:01:39]}  Nc4 {[%clk 0:00:39]} 23. Bc1 {[%clk 0:01:33]}  Nc5 {[%clk 0:00:30]} 24. b3 {[%clk 0:01:24]}  Na3+ {[%clk 0:00:17]} 25. Kb2 {[%clk 0:01:18]}  a5 {[%clk 0:00:12]} 26. c4 {[%clk 0:01:11]}  Rxe1 {[%clk 0:00:04]} 27. Rxe1 {[%clk 0:01:03]}  Nd3+ {[%clk 0:00:04]} 28. Ka1 {[%clk 0:01:03]}  Nxe1 {[%clk 0:00:05]} 29. Bc6 {[%clk 0:01:02]}  Nec2+ {[%clk 0:00:06]} 30. Kb2 {[%clk 0:01:02]}  Nd4 {[%clk 0:00:07]} 31. Bg2 {[%clk 0:01:01]}  a4 {[%clk 0:00:07]} 32. Be3 {[%clk 0:01:00]}  c5 {[%clk 0:00:06]} 33. Bf4 {[%clk 0:00:59]}  Rb6 {[%clk 0:00:05]} 34. Bd5 {[%clk 0:00:57]}  axb3 {[%clk 0:00:05]} 35. axb3 {[%clk 0:00:57]}  Ne6 {[%clk 0:00:06]} 36. Be3 {[%clk 0:00:55]}  Kf8 {[%clk 0:00:06]} 37. f4 {[%clk 0:00:55]}  Ke7 {[%clk 0:00:06]} 38. h4 {[%clk 0:00:55]}  Nc7 {[%clk 0:00:06]} 39. Be4 {[%clk 0:00:55]}  Rb8 {[%clk 0:00:06]} 40. f5 {[%clk 0:00:55]}  f6 {[%clk 0:00:05]} 41. Bc6 {[%clk 0:00:54]}  Kf7 {[%clk 0:00:05]} 42. Bf4 {[%clk 0:00:53]}  Ke7 {[%clk 0:00:05]} 43. g5 {[%clk 0:00:52]}  hxg5 {[%clk 0:00:05]} 44. hxg5 {[%clk 0:00:52]}  Rb6 {[%clk 0:00:06]} 45. Bf3 {[%clk 0:00:50]}  Rb8 {[%clk 0:00:06]} 46. g6 {[%clk 0:00:49]}  Rh8 {[%clk 0:00:05]} 47. Bc6 {[%clk 0:00:48]}  Rh4 {[%clk 0:00:05]} 48. Bg3 {[%clk 0:00:47]}  Rh3 {[%clk 0:00:06]} 49. Be1 {[%clk 0:00:45]}  Rh2+ {[%clk 0:00:06]} 50. Kc1 {[%clk 0:00:46]}  Nc2 {[%clk 0:00:06]} 51. Bg3 {[%clk 0:00:45]}  Re2 {[%clk 0:00:05]} 52. Kd1 {[%clk 0:00:44]}  Nd4 {[%clk 0:00:05]} 53. Bb7 {[%clk 0:00:43]}  Re3 {[%clk 0:00:05]} 54. Bf2 {[%clk 0:00:42]}  Rxb3 {[%clk 0:00:05]} 55. Kd2 {[%clk 0:00:42]}  Rb2+ {[%clk 0:00:06]} 0-1


[Site "https://www.chess.com"]

[Event "Titled Tuesday Blitz July 27 2021"]
[White "Dang, Hoang Son"]
[Black "Moon_stone123"]
[WhiteFideId "12402435"]
[WhiteElo "2248"]
[BlackElo "2416"]
[Result "1-0"]
[Round "11"]
[TimeControl "180+1"]
[Date "2021.07.27"]
[WhiteClock "0:02:25"]
[BlackClock "0:02:05"]

1. d4 {[%clk 0:02:59]}  d5 {[%clk 0:02:58]} 2. c4 {[%clk 0:02:56]}  dxc4 {[%clk 0:02:58]} 3. Nf3 {[%clk 0:02:56]}  Nf6 {[%clk 0:02:58]} 4. g3 {[%clk 0:02:57]}  b6 {[%clk 0:02:43]} 5. Bg2 {[%clk 0:02:56]}  Bb7 {[%clk 0:02:43]} 6. O-O {[%clk 0:02:56]}  e6 {[%clk 0:02:43]} 7. Qa4+ {[%clk 0:02:54]}  Nbd7 {[%clk 0:02:42]} 8. Qxc4 {[%clk 0:02:49]}  Be7 {[%clk 0:02:42]} 9. Nc3 {[%clk 0:02:48]}  O-O {[%clk 0:02:41]} 10. Bf4 {[%clk 0:02:48]}  Rc8 {[%clk 0:02:37]} 11. Rfd1 {[%clk 0:02:48]}  Ne4 {[%clk 0:02:34]} 12. Ne5 {[%clk 0:02:37]}  Nd6 {[%clk 0:02:28]} 13. Qa4 {[%clk 0:02:31]}  Bxg2 {[%clk 0:02:19]} 14. Kxg2 {[%clk 0:02:28]}  Nxe5 {[%clk 0:02:05]} 15. dxe5 {[%clk 0:02:26]}  Qe8 {[%clk 0:02:05]} 16. exd6 {[%clk 0:02:25]} 1-0


[Site "https://www.chess.com"]

[Event "Titled Tuesday Blitz July 27 2021"]
[White "Diaz Perez, Michel Alejandro"]
[Black "Carroll, Thomas"]
[WhiteFideId "3517179"]
[BlackFideId "450111"]
[WhiteElo "2337"]
[BlackElo "1950"]
[Result "1-0"]
[Round "11"]
[TimeControl "180+1"]
[Date "2021.07.27"]
[WhiteClock "0:00:53"]
[BlackClock "0:00:24"]

1. d4 {[%clk 0:03:00]}  Nf6 {[%clk 0:02:59]} 2. c4 {[%clk 0:03:00]}  c5 {[%clk 0:03:00]} 3. e3 {[%clk 0:03:00]}  g6 {[%clk 0:02:59]} 4. Nc3 {[%clk 0:02:59]}  Bg7 {[%clk 0:03:00]} 5. d5 {[%clk 0:02:59]}  e6 {[%clk 0:02:59]} 6. Nf3 {[%clk 0:03:00]}  exd5 {[%clk 0:02:59]} 7. cxd5 {[%clk 0:03:01]}  O-O {[%clk 0:03:00]} 8. Be2 {[%clk 0:03:01]}  d6 {[%clk 0:03:00]} 9. O-O {[%clk 0:03:00]}  Bg4 {[%clk 0:03:00]} 10. Nd2 {[%clk 0:03:00]}  Bxe2 {[%clk 0:03:00]} 11. Qxe2 {[%clk 0:03:01]}  Nbd7 {[%clk 0:03:01]} 12. e4 {[%clk 0:02:58]}  Re8 {[%clk 0:02:56]} 13. Re1 {[%clk 0:02:53]}  a6 {[%clk 0:02:56]} 14. a4 {[%clk 0:02:52]}  Qc7 {[%clk 0:02:54]} 15. Qf1 {[%clk 0:02:46]}  Rac8 {[%clk 0:02:36]} 16. Nc4 {[%clk 0:02:43]}  Ne5 {[%clk 0:02:28]} 17. Nxe5 {[%clk 0:02:38]}  Rxe5 {[%clk 0:02:29]} 18. Bf4 {[%clk 0:02:38]}  Ree8 {[%clk 0:02:29]} 19. h3 {[%clk 0:02:37]}  Nh5 {[%clk 0:02:28]} 20. Bh2 {[%clk 0:02:36]}  Be5 {[%clk 0:02:29]} 21. f4 {[%clk 0:02:34]}  Bd4+ {[%clk 0:02:28]} 22. Kh1 {[%clk 0:02:34]}  f5 {[%clk 0:02:25]} 23. g4 {[%clk 0:02:13]}  Ng7 {[%clk 0:02:20]} 24. Qf3 {[%clk 0:02:09]}  Qd7 {[%clk 0:02:09]} 25. e5 {[%clk 0:02:03]}  fxg4 {[%clk 0:02:02]} 26. Qxg4 {[%clk 0:02:01]}  Nf5 {[%clk 0:01:57]} 27. e6 {[%clk 0:01:59]}  Qe7 {[%clk 0:01:48]} 28. Ne4 {[%clk 0:01:52]}  b5 {[%clk 0:01:37]} 29. axb5 {[%clk 0:01:45]}  axb5 {[%clk 0:01:38]} 30. Ra5 {[%clk 0:01:39]}  b4 {[%clk 0:01:35]} 31. Bg1 {[%clk 0:01:32]}  Bxb2 {[%clk 0:01:28]} 32. Bf2 {[%clk 0:01:32]}  Bd4 {[%clk 0:01:14]} 33. Bxd4 {[%clk 0:01:25]}  cxd4 {[%clk 0:01:10]} 34. Rg1 {[%clk 0:01:23]}  Rc2 {[%clk 0:01:02]} 35. Qxf5 {[%clk 0:01:17]}  Qg7 {[%clk 0:00:42]} 36. Nf6+ {[%clk 0:01:15]}  Kh8 {[%clk 0:00:41]} 37. Nxe8 {[%clk 0:01:12]}  gxf5 {[%clk 0:00:34]} 38. Nxg7 {[%clk 0:01:11]}  h6 {[%clk 0:00:29]} 39. Nxf5 {[%clk 0:01:09]}  Rc8 {[%clk 0:00:26]} 40. Nxd6 {[%clk 0:01:08]}  Rb8 {[%clk 0:00:26]} 41. Nf7+ {[%clk 0:01:07]}  Kh7 {[%clk 0:00:24]} 42. d6 {[%clk 0:01:02]}  b3 {[%clk 0:00:24]} 43. Rh5 {[%clk 0:00:53]} 1-0


[Site "https://www.chess.com"]

[Event "Titled Tuesday Blitz July 27 2021"]
[White "Do Valle Cardoso, Lucas"]
[Black "Nefedov, Sergey"]
[WhiteFideId "2163144"]
[BlackFideId "24113417"]
[WhiteElo "2387"]
[BlackElo "2385"]
[Result "1-0"]
[Round "11"]
[TimeControl "180+1"]
[Date "2021.07.27"]
[WhiteClock "0:00:05"]
[BlackClock "0:00:01"]

1. e4 {[%clk 0:03:00]}  d5 {[%clk 0:02:59]} 2. exd5 {[%clk 0:02:59]}  Qxd5 {[%clk 0:03:00]} 3. Nc3 {[%clk 0:02:58]}  Qd8 {[%clk 0:03:00]} 4. d4 {[%clk 0:02:56]}  Nf6 {[%clk 0:03:01]} 5. Nf3 {[%clk 0:02:56]}  g6 {[%clk 0:03:01]} 6. Bc4 {[%clk 0:02:55]}  Bg7 {[%clk 0:03:01]} 7. h3 {[%clk 0:02:53]}  O-O {[%clk 0:03:00]} 8. O-O {[%clk 0:02:52]}  a6 {[%clk 0:03:00]} 9. Qe2 {[%clk 0:02:49]}  b5 {[%clk 0:02:59]} 10. Bb3 {[%clk 0:02:49]}  Bb7 {[%clk 0:02:59]} 11. Rd1 {[%clk 0:02:49]}  e6 {[%clk 0:02:56]} 12. Bg5 {[%clk 0:02:45]}  h6 {[%clk 0:02:55]} 13. Bh4 {[%clk 0:02:45]}  g5 {[%clk 0:02:41]} 14. Bg3 {[%clk 0:02:45]}  Nd5 {[%clk 0:02:17]} 15. Nxd5 {[%clk 0:02:38]}  Bxd5 {[%clk 0:02:16]} 16. c3 {[%clk 0:02:16]}  Nd7 {[%clk 0:02:08]} 17. Bc2 {[%clk 0:02:16]}  Re8 {[%clk 0:02:01]} 18. a4 {[%clk 0:02:10]}  c6 {[%clk 0:01:58]} 19. Ne5 {[%clk 0:02:09]}  f5 {[%clk 0:01:52]} 20. Nxd7 {[%clk 0:02:04]}  Qxd7 {[%clk 0:01:51]} 21. Be5 {[%clk 0:02:05]}  Bf8 {[%clk 0:01:41]} 22. b3 {[%clk 0:01:31]}  c5 {[%clk 0:01:35]} 23. dxc5 {[%clk 0:01:31]}  Qb7 {[%clk 0:01:32]} 24. axb5 {[%clk 0:01:22]}  axb5 {[%clk 0:01:27]} 25. Rxa8 {[%clk 0:01:22]}  Rxa8 {[%clk 0:01:26]} 26. Bd4 {[%clk 0:01:21]}  Qc6 {[%clk 0:01:16]} 27. Bd3 {[%clk 0:00:48]}  Bxc5 {[%clk 0:01:06]} 28. Bxb5 {[%clk 0:00:47]}  Qb6 {[%clk 0:01:05]} 29. b4 {[%clk 0:00:44]}  Bxd4 {[%clk 0:01:02]} 30. Rxd4 {[%clk 0:00:45]}  Ra1+ {[%clk 0:00:58]} 31. Kh2 {[%clk 0:00:45]}  Qc7+ {[%clk 0:00:55]} 32. f4 {[%clk 0:00:44]}  gxf4 {[%clk 0:00:45]} 33. Qf2 {[%clk 0:00:24]}  Qxc3 {[%clk 0:00:25]} 34. Qxf4 {[%clk 0:00:13]}  Kg7 {[%clk 0:00:20]} 35. Qe5+ {[%clk 0:00:11]}  Kf7 {[%clk 0:00:08]} 36. Rxd5 {[%clk 0:00:09]}  Qxe5+ {[%clk 0:00:04]} 37. Rxe5 {[%clk 0:00:10]}  Rb1 {[%clk 0:00:03]} 38. Bc4 {[%clk 0:00:03]}  Rxb4 {[%clk 0:00:04]} 39. Rxf5+ {[%clk 0:00:03]}  Ke7 {[%clk 0:00:03]} 40. Rf4 {[%clk 0:00:04]}  e5 {[%clk 0:00:03]} 41. Re4 {[%clk 0:00:03]}  Kf6 {[%clk 0:00:03]} 42. Bd3 {[%clk 0:00:03]}  Rb3 {[%clk 0:00:03]} 43. Bc2 {[%clk 0:00:03]}  Rc3 {[%clk 0:00:03]} 44. Re2 {[%clk 0:00:03]}  Rc5 {[%clk 0:00:02]} 45. Be4 {[%clk 0:00:04]}  h5 {[%clk 0:00:02]} 46. h4 {[%clk 0:00:04]}  Ke6 {[%clk 0:00:01]} 47. g3 {[%clk 0:00:05]}  Rc4 {[%clk 0:00:02]} 48. Kh3 {[%clk 0:00:05]}  Kd6 {[%clk 0:00:02]} 49. Rd2+ {[%clk 0:00:05]}  Ke7 {[%clk 0:00:02]} 50. Re2 {[%clk 0:00:04]}  Kf6 {[%clk 0:00:01]} 51. g4 {[%clk 0:00:04]}  Rc3+ {[%clk 0:00:02]} 52. Kg2 {[%clk 0:00:04]}  hxg4 {[%clk 0:00:02]} 53. Rf2+ {[%clk 0:00:03]}  Kg7 {[%clk 0:00:02]} 54. Rf5 {[%clk 0:00:04]}  Re3 {[%clk 0:00:02]} 55. Rxe5 {[%clk 0:00:04]}  Kf6 {[%clk 0:00:02]} 56. Rf5+ {[%clk 0:00:04]}  Ke6 {[%clk 0:00:02]} 57. Rf4 {[%clk 0:00:04]}  g3 {[%clk 0:00:02]} 58. Bf3 {[%clk 0:00:03]}  Ke5 {[%clk 0:00:02]} 59. Rg4 {[%clk 0:00:04]}  Rd3 {[%clk 0:00:02]} 60. Kxg3 {[%clk 0:00:04]}  Kf5 {[%clk 0:00:03]} 61. Rg5+ {[%clk 0:00:04]}  Kf6 {[%clk 0:00:03]} 62. Rg4 {[%clk 0:00:05]}  Rd2 {[%clk 0:00:02]} 63. h5 {[%clk 0:00:05]}  Rd3 {[%clk 0:00:01]} 64. h6 {[%clk 0:00:05]}  Rd7 {[%clk 0:00:01]} 65. h7 {[%clk 0:00:05]} 1-0


[Site "https://www.chess.com"]

[Event "Titled Tuesday Blitz July 27 2021"]
[White "Dushyant Sharma"]
[Black "Lodici, Lorenzo"]
[WhiteFideId "25065130"]
[BlackFideId "884189"]
[WhiteElo "2019"]
[BlackElo "2265"]
[Result "0-1"]
[Round "11"]
[TimeControl "180+1"]
[Date "2021.07.27"]
[WhiteClock "0:00:11"]
[BlackClock "0:00:14"]

1. e4 {[%clk 0:03:00]}  e5 {[%clk 0:02:56]} 2. Nf3 {[%clk 0:03:01]}  Nc6 {[%clk 0:02:56]} 3. Nc3 {[%clk 0:03:01]}  Nf6 {[%clk 0:02:56]} 4. Bb5 {[%clk 0:03:01]}  Bd6 {[%clk 0:02:55]} 5. d3 {[%clk 0:02:56]}  a6 {[%clk 0:02:55]} 6. Ba4 {[%clk 0:02:53]}  b5 {[%clk 0:02:54]} 7. Bb3 {[%clk 0:02:53]}  Na5 {[%clk 0:02:54]} 8. Bg5 {[%clk 0:02:53]}  h6 {[%clk 0:02:52]} 9. Bh4 {[%clk 0:02:52]}  Nxb3 {[%clk 0:02:47]} 10. axb3 {[%clk 0:02:52]}  Bb7 {[%clk 0:02:48]} 11. h3 {[%clk 0:02:52]}  c5 {[%clk 0:02:46]} 12. Qd2 {[%clk 0:02:50]}  Qe7 {[%clk 0:02:46]} 13. Ne2 {[%clk 0:02:50]}  Qe6 {[%clk 0:02:45]} 14. Ng3 {[%clk 0:02:50]}  g5 {[%clk 0:02:44]} 15. Nf5 {[%clk 0:02:50]}  Bf8 {[%clk 0:02:42]} 16. Nxg5 {[%clk 0:02:38]}  hxg5 {[%clk 0:02:39]} 17. Qxg5 {[%clk 0:02:36]}  Ng8 {[%clk 0:02:26]} 18. g3 {[%clk 0:02:16]}  Qg6 {[%clk 0:02:18]} 19. Qe3 {[%clk 0:02:11]}  f6 {[%clk 0:02:11]} 20. f4 {[%clk 0:02:08]}  d6 {[%clk 0:02:11]} 21. fxe5 {[%clk 0:02:01]}  fxe5 {[%clk 0:02:10]} 22. b4 {[%clk 0:02:01]}  Nh6 {[%clk 0:02:06]} 23. O-O {[%clk 0:02:00]}  Nf7 {[%clk 0:02:01]} 24. bxc5 {[%clk 0:01:58]}  dxc5 {[%clk 0:02:02]} 25. Kh2 {[%clk 0:01:43]}  Qe6 {[%clk 0:01:45]} 26. b4 {[%clk 0:01:40]}  cxb4 {[%clk 0:01:42]} 27. d4 {[%clk 0:01:34]}  Rc8 {[%clk 0:01:22]} 28. d5 {[%clk 0:01:32]}  Rxc2+ {[%clk 0:01:19]} 29. Kg1 {[%clk 0:01:32]}  Qc8 {[%clk 0:01:10]} 30. Rac1 {[%clk 0:01:32]}  Bc5 {[%clk 0:01:01]} 31. Ng7+ {[%clk 0:01:22]}  Kf8 {[%clk 0:00:59]} 32. Ne6+ {[%clk 0:01:02]}  Qxe6 {[%clk 0:00:58]} 33. Qxc5+ {[%clk 0:01:00]}  Rxc5 {[%clk 0:00:59]} 34. dxe6 {[%clk 0:01:00]}  Rxc1 {[%clk 0:00:59]} 35. Rxc1 {[%clk 0:01:01]}  Nd6 {[%clk 0:00:59]} 36. Rd1 {[%clk 0:00:55]}  Ne8 {[%clk 0:00:57]} 37. Rd7 {[%clk 0:00:54]}  Bxe4 {[%clk 0:00:55]} 38. Be7+ {[%clk 0:00:52]}  Kg8 {[%clk 0:00:55]} 39. Bxb4 {[%clk 0:00:52]}  Bf5 {[%clk 0:00:53]} 40. Re7 {[%clk 0:00:44]}  Ng7 {[%clk 0:00:52]} 41. Bc3 {[%clk 0:00:41]}  Nxe6 {[%clk 0:00:41]} 42. Bxe5 {[%clk 0:00:38]}  Rxh3 {[%clk 0:00:39]} 43. Ra7 {[%clk 0:00:32]}  Rh7 {[%clk 0:00:27]} 44. Rxa6 {[%clk 0:00:32]}  Rb7 {[%clk 0:00:24]} 45. Ra8+ {[%clk 0:00:18]}  Kf7 {[%clk 0:00:24]} 46. Ra2 {[%clk 0:00:19]}  b4 {[%clk 0:00:24]} 47. Rf2 {[%clk 0:00:17]}  Kg6 {[%clk 0:00:23]} 48. Kg2 {[%clk 0:00:18]}  b3 {[%clk 0:00:23]} 49. Kf3 {[%clk 0:00:19]}  Nc5 {[%clk 0:00:21]} 50. g4 {[%clk 0:00:18]}  Be6 {[%clk 0:00:18]} 51. Ke3 {[%clk 0:00:18]}  Rf7 {[%clk 0:00:17]} 52. Rb2 {[%clk 0:00:16]}  Na4 {[%clk 0:00:15]} 53. Rb1 {[%clk 0:00:15]}  Rb7 {[%clk 0:00:15]} 54. Kd2 {[%clk 0:00:12]}  Bxg4 {[%clk 0:00:14]} 55. Rg1 {[%clk 0:00:11]}  Kf5 {[%clk 0:00:14]} 56. Kc1 {[%clk 0:00:12]}  Kxe5 {[%clk 0:00:14]} 57. Rxg4 {[%clk 0:00:11]}  b2+ {[%clk 0:00:14]} 58. Kc2 {[%clk 0:00:11]}  b1=Q+ {[%clk 0:00:14]} 0-1


[Site "https://www.chess.com"]

[Event "Titled Tuesday Blitz July 27 2021"]
[White "Goncalves, Ivan Mesquita V"]
[Black "Muradli, Mahammad"]
[WhiteFideId "2114224"]
[BlackFideId "13409301"]
[WhiteElo "2299"]
[BlackElo "2482"]
[Result "1-0"]
[Round "11"]
[TimeControl "180+1"]
[Date "2021.07.27"]
[WhiteClock "0:00:08"]
[BlackClock "0:00:04"]

1. d4 {[%clk 0:02:39]}  g6 {[%clk 0:02:38]} 2. e4 {[%clk 0:02:34]}  Bg7 {[%clk 0:02:35]} 3. Nc3 {[%clk 0:02:34]}  d6 {[%clk 0:02:35]} 4. f3 {[%clk 0:02:35]}  Nd7 {[%clk 0:02:35]} 5. Be3 {[%clk 0:02:33]}  a6 {[%clk 0:02:35]} 6. Qd2 {[%clk 0:02:32]}  b6 {[%clk 0:02:36]} 7. h4 {[%clk 0:02:32]}  h6 {[%clk 0:02:36]} 8. h5 {[%clk 0:02:31]}  g5 {[%clk 0:02:35]} 9. Nge2 {[%clk 0:02:32]}  e6 {[%clk 0:02:34]} 10. O-O-O {[%clk 0:02:29]}  Bb7 {[%clk 0:02:34]} 11. g3 {[%clk 0:02:29]}  Ne7 {[%clk 0:02:33]} 12. Bg2 {[%clk 0:02:28]}  f5 {[%clk 0:02:30]} 13. f4 {[%clk 0:02:26]}  g4 {[%clk 0:02:29]} 14. d5 {[%clk 0:02:14]}  exd5 {[%clk 0:02:11]} 15. exf5 {[%clk 0:02:11]}  Nxf5 {[%clk 0:02:10]} 16. Bxd5 {[%clk 0:02:03]}  Bxd5 {[%clk 0:02:03]} 17. Nxd5 {[%clk 0:02:03]}  O-O {[%clk 0:02:00]} 18. Nd4 {[%clk 0:01:58]}  Nc5 {[%clk 0:00:54]} 19. Nxf5 {[%clk 0:01:51]}  Rxf5 {[%clk 0:00:55]} 20. Bxc5 {[%clk 0:01:51]}  bxc5 {[%clk 0:00:51]} 21. Qd3 {[%clk 0:01:51]}  Rf7 {[%clk 0:00:47]} 22. Ne3 {[%clk 0:01:39]}  Rb8 {[%clk 0:00:41]} 23. c3 {[%clk 0:01:39]}  Qd7 {[%clk 0:00:38]} 24. Rh4 {[%clk 0:01:31]}  Qa4 {[%clk 0:00:33]} 25. Qc4 {[%clk 0:01:23]}  Qe8 {[%clk 0:00:06]} 26. Nxg4 {[%clk 0:01:17]}  Kh8 {[%clk 0:00:06]} 27. Rh2 {[%clk 0:01:10]}  Re7 {[%clk 0:00:06]} 28. Rhd2 {[%clk 0:01:03]}  Qxh5 {[%clk 0:00:06]} 29. Nf2 {[%clk 0:00:58]}  Qf3 {[%clk 0:00:07]} 30. Qd3 {[%clk 0:00:40]}  Re3 {[%clk 0:00:07]} 31. Qd5 {[%clk 0:00:38]}  Bxc3 {[%clk 0:00:05]} 32. bxc3 {[%clk 0:00:27]}  Rxc3+ {[%clk 0:00:06]} 33. Rc2 {[%clk 0:00:27]}  Qxf2 {[%clk 0:00:07]} 34. Qd2 {[%clk 0:00:13]}  Qxd2+ {[%clk 0:00:07]} 35. Kxd2 {[%clk 0:00:13]}  Rxg3 {[%clk 0:00:08]} 36. Rc4 {[%clk 0:00:12]}  Rb2+ {[%clk 0:00:07]} 37. Kc1 {[%clk 0:00:12]}  Rxa2 {[%clk 0:00:07]} 38. Kb1 {[%clk 0:00:12]}  Rgg2 {[%clk 0:00:07]} 39. Re1 {[%clk 0:00:11]}  Rgb2+ {[%clk 0:00:06]} 40. Kc1 {[%clk 0:00:12]}  Ra1+ {[%clk 0:00:07]} 41. Kxb2 {[%clk 0:00:12]}  Rxe1 {[%clk 0:00:08]} 42. Ra4 {[%clk 0:00:13]}  Rf1 {[%clk 0:00:07]} 43. Kc3 {[%clk 0:00:13]}  Rf3+ {[%clk 0:00:06]} 44. Kd2 {[%clk 0:00:13]}  Kg7 {[%clk 0:00:07]} 45. Ke2 {[%clk 0:00:14]}  Rb3 {[%clk 0:00:06]} 46. Rxa6 {[%clk 0:00:14]}  Kf6 {[%clk 0:00:04]} 47. Rc6 {[%clk 0:00:15]}  Ke6 {[%clk 0:00:04]} 48. Rxc7 {[%clk 0:00:15]}  Kd5 {[%clk 0:00:04]} 49. Rh7 {[%clk 0:00:14]}  Kd4 {[%clk 0:00:05]} 50. Rxh6 {[%clk 0:00:15]}  d5 {[%clk 0:00:06]} 51. f5 {[%clk 0:00:14]}  Re3+ {[%clk 0:00:06]} 52. Kf2 {[%clk 0:00:14]}  Re5 {[%clk 0:00:07]} 53. Rh4+ {[%clk 0:00:13]}  Kd3 {[%clk 0:00:07]} 54. Rf4 {[%clk 0:00:13]}  c4 {[%clk 0:00:04]} 55. f6 {[%clk 0:00:13]}  Re8 {[%clk 0:00:04]} 56. f7 {[%clk 0:00:13]}  Rf8 {[%clk 0:00:05]} 57. Ke1 {[%clk 0:00:14]}  d4 {[%clk 0:00:04]} 58. Kd1 {[%clk 0:00:14]}  Kc3 {[%clk 0:00:04]} 59. Rf3+ {[%clk 0:00:14]}  d3 {[%clk 0:00:04]} 60. Rf4 {[%clk 0:00:14]}  Ra8 {[%clk 0:00:05]} 61. Ke1 {[%clk 0:00:13]}  Kc2 {[%clk 0:00:05]} 62. Rxc4+ {[%clk 0:00:12]}  Kb3 {[%clk 0:00:04]} 63. Rf4 {[%clk 0:00:12]}  Kc2 {[%clk 0:00:02]} 64. Rc4+ {[%clk 0:00:10]}  Kb3 {[%clk 0:00:03]} 65. Rc7 {[%clk 0:00:09]}  Ra1+ {[%clk 0:00:02]} 66. Kd2 {[%clk 0:00:09]}  Rf1 {[%clk 0:00:02]} 67. Kxd3 {[%clk 0:00:10]}  Kb4 {[%clk 0:00:03]} 68. Ke4 {[%clk 0:00:10]}  Kb5 {[%clk 0:00:03]} 69. Ke5 {[%clk 0:00:10]}  Kb6 {[%clk 0:00:04]} 70. Re7 {[%clk 0:00:09]}  Kc6 {[%clk 0:00:04]} 71. Ra7 {[%clk 0:00:08]}  Re1+ {[%clk 0:00:04]} 72. Kf6 {[%clk 0:00:08]}  Rf1+ {[%clk 0:00:05]} 73. Kg7 {[%clk 0:00:08]}  Rg1+ {[%clk 0:00:06]} 74. Kf8 {[%clk 0:00:09]}  Rf1 {[%clk 0:00:06]} 75. Re7 {[%clk 0:00:09]}  Kd6 {[%clk 0:00:04]} 76. Ke8 {[%clk 0:00:08]} 1-0


[Site "https://www.chess.com"]